[Event "Schack-SM 2024: Mastarklassen"]
[Site "Fortnox Arena, Hejaregatan 5, Vaxjo, Sweden"]
[Date "2024.07.05"]
[Round "7.12"]
[White "Karlsson, Stefan 2005"]
[Black "Ostensson, Julia"]
[Result "1/2-1/2"]
[TimeControl "90 minutes for 40 moves + 30 minutes for the rest of the game + 30 seconds per move from move one."]
[WhiteElo "2072"]
[BlackElo "2004"]

1. e4 {[%clk 01:30:56]} {[%emt 00:00:03]} c5 {[%clk 01:30:54]} {[%emt
00:00:07]} 2. Nf3 {[%clk 01:31:21]} {[%emt 00:00:05]} e6 {[%clk 01:31:22]}
{[%emt 00:00:03]} 3. c3 {[%clk 01:31:43]} {[%emt 00:00:07]} d5 {[%clk
01:31:46]} {[%emt 00:00:07]} 4. exd5 {[%clk 01:32:07]} {[%emt 00:00:05]} Qxd5
{[%clk 01:32:12]} {[%emt 00:00:04]} 5. d4 {[%clk 01:32:31]} {[%emt 00:00:06]}
Nf6 {[%clk 01:32:40]} {[%emt 00:00:03]} 6. Na3 {[%clk 01:32:54]} {[%emt
00:00:06]} a6 {[%clk 01:33:07]} {[%emt 00:00:04]} 7. Nc4 {[%clk 01:33:19]}
{[%emt 00:00:04]} Nbd7 {[%clk 01:33:33]} {[%emt 00:00:04]} 8. Be2 {[%clk
01:28:55]} {[%emt 00:04:54]} b5 {[%clk 01:33:47]} {[%emt 00:00:17]} 9. Ne3
{[%clk 01:19:11]} {[%emt 00:10:13]} Qc6 {[%clk 01:34:08]} {[%emt 00:00:10]} 10.
O-O {[%clk 01:17:49]} {[%emt 00:01:50]} Bb7 {[%clk 01:33:57]} {[%emt 00:00:43]}
11. Re1 {[%clk 01:12:25]} {[%emt 00:05:53]} Be7 {[%clk 01:28:53]} {[%emt
00:05:34]} 12. a4 {[%clk 01:03:59]} {[%emt 00:08:56]} O-O {[%clk 01:10:17]}
{[%emt 00:19:06]} 13. axb5 {[%clk 00:50:52]} {[%emt 00:13:37]} axb5 {[%clk
01:10:33]} {[%emt 00:00:15]} 14. Rxa8 {[%clk 00:51:17]} {[%emt 00:00:05]} Bxa8
{[%clk 01:09:07]} {[%emt 00:01:56]} 15. dxc5 {[%clk 00:44:06]} {[%emt
00:07:40]} Bxc5 {[%clk 00:53:14]} {[%emt 00:16:23]} 16. Nd4 {[%clk 00:40:11]}
{[%emt 00:04:24]} Qb7 {[%clk 00:52:29]} {[%emt 00:01:16]} 17. Bf3 {[%clk
00:30:52]} {[%emt 00:09:49]} Qb6 {[%clk 00:52:06]} {[%emt 00:00:53]} 18. Nb3
{[%clk 00:21:10]} {[%emt 00:10:12]} Bxf3 {[%clk 00:47:32]} {[%emt 00:05:04]} 19.
Qxf3 {[%clk 00:21:28]} {[%emt 00:00:12]} Ne5 {[%clk 00:43:15]} {[%emt
00:04:48]} 20. Qe2 {[%clk 00:21:41]} {[%emt 00:00:17]} Rd8 {[%clk 00:33:25]}
{[%emt 00:10:18]} 21. Nxc5 {[%clk 00:18:41]} {[%emt 00:03:31]} Qxc5 {[%clk
00:33:38]} {[%emt 00:00:17]} 22. Rd1 {[%clk 00:18:23]} {[%emt 00:00:47]} Rxd1+
{[%clk 00:32:46]} {[%emt 00:01:23]} 23. Qxd1 {[%clk 00:18:40]} {[%emt
00:00:13]} h6 {[%clk 00:32:28]} {[%emt 00:00:48]} 24. h3 {[%clk 00:17:18]}
{[%emt 00:01:52]} Nc4 {[%clk 00:25:25]} {[%emt 00:07:32]} 25. Qd8+ {[%clk
00:12:28]} {[%emt 00:05:20]} Kh7 {[%clk 00:25:27]} {[%emt 00:00:29]} 26. Qd3+
{[%clk 00:12:41]} {[%emt 00:00:18]} Kg8 {[%clk 00:25:20]} {[%emt 00:00:37]} 27.
Qd8+ {[%clk 00:12:59]} {[%emt 00:00:11]} Kh7 {[%clk 00:25:31]} {[%emt
00:00:19]} 28. Qd3+ {[%clk 00:13:23]} {[%emt 00:00:06]} Kg8 {[%clk 00:25:47]}
{[%emt 00:00:15]} 1/2-1/2

[Event "Schack-SM 2024: Mastarklassen"]
[Site "Fortnox Arena, Hejaregatan 5, Vaxjo, Sweden"]
[Date "2024.07.04"]
[Round "6.12"]
[White "Willstedt, Lukas"]
[Black "Arvidsson, Jonas"]
[Result "1-0"]
[TimeControl "90 minutes for 40 moves + 30 minutes for the rest of the game + 30 seconds per move from move one."]
[WhiteElo "2082"]
[BlackElo "1960"]

1. d4 {[%clk 01:30:59]} {[%emt 00:00:02]} Nf6 {[%clk 01:30:54]} {[%emt
00:00:05]} 2. c4 {[%clk 01:30:30]} {[%emt 00:00:59]} c5 {[%clk 01:30:57]}
{[%emt 00:00:26]} 3. d5 {[%clk 01:30:41]} {[%emt 00:00:20]} b5 {[%clk
01:31:23]} {[%emt 00:00:04]} 4. cxb5 {[%clk 01:31:07]} {[%emt 00:00:04]} a6
{[%clk 01:31:48]} {[%emt 00:00:05]} 5. e3 {[%clk 01:31:34]} {[%emt 00:00:03]}
axb5 {[%clk 01:30:29]} {[%emt 00:01:48]} 6. Bxb5 {[%clk 01:31:08]} {[%emt
00:00:57]} Qa5+ {[%clk 01:28:29]} {[%emt 00:02:30]} 7. Nc3 {[%clk 01:31:34]}
{[%emt 00:00:02]} Ne4 {[%clk 01:26:04]} {[%emt 00:02:56]} 8. Nge2 {[%clk
01:30:36]} {[%emt 00:01:27]} g6 {[%clk 01:22:06]} {[%emt 00:04:30]} 9. O-O
{[%clk 01:30:50]} {[%emt 00:00:16]} Nxc3 {[%clk 01:22:09]} {[%emt 00:00:27]} 10.
Nxc3 {[%clk 01:31:06]} {[%emt 00:00:14]} Bg7 {[%clk 01:22:03]} {[%emt
00:00:36]} 11. Bd2 {[%clk 01:30:23]} {[%emt 00:01:11]} O-O {[%clk 01:19:46]}
{[%emt 00:02:49]} 12. a4 {[%clk 01:25:50]} {[%emt 00:05:02]} d6 {[%clk
01:16:13]} {[%emt 00:04:03]} 13. e4 {[%clk 01:21:56]} {[%emt 00:04:24]} Na6
{[%clk 01:09:56]} {[%emt 00:06:48]} 14. Rb1 {[%clk 01:07:15]} {[%emt 00:15:11]}
Bb7 {[%clk 01:00:12]} {[%emt 00:10:14]} 15. Bg5 {[%clk 01:00:43]} {[%emt
00:07:00]} Qd8 {[%clk 00:55:18]} {[%emt 00:05:26]} 16. Re1 {[%clk 00:53:54]}
{[%emt 00:07:18]} Nc7 {[%clk 00:50:53]} {[%emt 00:04:55]} 17. Bc4 {[%clk
00:50:48]} {[%emt 00:03:36]} Ba6 {[%clk 00:48:18]} {[%emt 00:03:06]} 18. Bxa6
{[%clk 00:41:54]} {[%emt 00:09:23]} Nxa6 {[%clk 00:44:32]} {[%emt 00:04:17]} 19.
Nb5 {[%clk 00:40:18]} {[%emt 00:02:05]} Qd7 {[%clk 00:38:26]} {[%emt 00:06:37]}
20. b3 {[%clk 00:40:04]} {[%emt 00:00:43]} Rfb8 {[%clk 00:33:28]} {[%emt
00:05:29]} 21. f4 {[%clk 00:35:14]} {[%emt 00:05:19]} Nc7 {[%clk 00:32:32]}
{[%emt 00:01:26]} 22. Nxc7 {[%clk 00:35:31]} {[%emt 00:00:13]} Qxc7 {[%clk
00:32:59]} {[%emt 00:00:04]} 23. Qe2 {[%clk 00:35:42]} {[%emt 00:00:18]} h6
{[%clk 00:28:27]} {[%emt 00:05:02]} 24. Bh4 {[%clk 00:35:57]} {[%emt 00:00:14]}
Rb4 {[%clk 00:28:16]} {[%emt 00:00:43]} 25. Bf2 {[%clk 00:34:14]} {[%emt
00:02:12]} Qb7 {[%clk 00:26:17]} {[%emt 00:02:30]} 26. Qc2 {[%clk 00:23:55]}
{[%emt 00:10:49]} Rb8 {[%clk 00:25:44]} {[%emt 00:01:03]} 27. Bh4 {[%clk
00:24:07]} {[%emt 00:00:18]} c4 {[%clk 00:23:59]} {[%emt 00:02:14]} 28. a5
{[%clk 00:19:34]} {[%emt 00:05:04]} Rxb3 {[%clk 00:19:29]} {[%emt 00:05:00]} 29.
Rxb3 {[%clk 00:17:23]} {[%emt 00:02:40]} Qxb3 {[%clk 00:19:26]} {[%emt
00:00:34]} 30. Rc1 {[%clk 00:17:08]} {[%emt 00:00:44]} Qxc2 {[%clk 00:12:05]}
{[%emt 00:07:52]} 31. Rxc2 {[%clk 00:17:36]} {[%emt 00:00:02]} Rb1+ {[%clk
00:12:25]} {[%emt 00:00:10]} 32. Kf2 {[%clk 00:17:56]} {[%emt 00:00:07]} c3
{[%clk 00:12:32]} {[%emt 00:00:26]} 33. Ke2 {[%clk 00:18:07]} {[%emt 00:00:18]}
Ra1 {[%clk 00:12:47]} {[%emt 00:00:15]} 34. Bxe7 {[%clk 00:18:18]} {[%emt
00:00:20]} Rg1 {[%clk 00:08:41]} {[%emt 00:04:36]} 35. Bxd6 {[%clk 00:17:21]}
{[%emt 00:01:28]} Rxg2+ {[%clk 00:07:49]} {[%emt 00:01:22]} 36. Kd3 {[%clk
00:17:37]} {[%emt 00:00:12]} Rg1 {[%clk 00:07:58]} {[%emt 00:00:23]} 37. e5
{[%clk 00:12:20]} {[%emt 00:05:46]} f6 {[%clk 00:05:42]} {[%emt 00:02:45]} 38.
Rxc3 {[%clk 00:10:04]} {[%emt 00:02:47]} fxe5 {[%clk 00:05:23]} {[%emt
00:00:49]} 39. Bxe5 {[%clk 00:10:08]} {[%emt 00:00:26]} Rd1+ {[%clk 00:05:02]}
{[%emt 00:00:51]} 40. Ke2 {[%clk 00:09:39]} {[%emt 00:00:56]} Rxd5 {[%clk
00:03:00]} {[%emt 00:02:34]} 41. Rc8+ {[%clk 00:09:55]} {[%emt 00:00:14]} Kf7
{[%clk 00:03:10]} {[%emt 00:00:19]} 42. Rc7+ {[%clk 00:10:12]} {[%emt
00:00:14]} Ke6 {[%clk 00:03:32]} {[%emt 00:00:08]} 43. Rxg7 {[%clk 00:10:20]}
{[%emt 00:00:22]} Kf5 {[%clk 00:03:11]} {[%emt 00:00:52]} 44. a6 {[%clk
00:09:26]} {[%emt 00:01:24]} 1-0

[Event "Schack-SM 2024: Mastarklassen"]
[Site "Fortnox Arena, Hejaregatan 5, Vaxjo, Sweden"]
[Date "2024.07.04"]
[Round "6.13"]
[White "Neretljak, Nedzad"]
[Black "Ask, Josef"]
[Result "0-1"]
[TimeControl "90 minutes for 40 moves + 30 minutes for the rest of the game + 30 seconds per move from move one."]
[WhiteTitle "CM"]
[BlackTitle "FM"]
[WhiteElo "2048"]
[BlackElo "2136"]

1. e4 {[%clk 01:30:56]} {[%emt 00:00:02]} c5 {[%clk 01:30:41]} {[%emt
00:00:19]} 2. Nf3 {[%clk 01:31:19]} {[%emt 00:00:07]} Nc6 {[%clk 01:30:47]}
{[%emt 00:00:25]} 3. b4 {[%clk 01:31:25]} {[%emt 00:00:24]} cxb4 {[%clk
01:30:03]} {[%emt 00:01:13]} 4. d4 {[%clk 01:30:49]} {[%emt 00:01:06]} d5
{[%clk 01:28:51]} {[%emt 00:01:42]} 5. exd5 {[%clk 01:31:10]} {[%emt 00:00:09]}
Qxd5 {[%clk 01:29:09]} {[%emt 00:00:12]} 6. c4 {[%clk 01:31:17]} {[%emt
00:00:23]} bxc3 {[%clk 01:28:15]} {[%emt 00:01:25]} 7. Nxc3 {[%clk 01:31:40]}
{[%emt 00:00:06]} Qa5 {[%clk 01:27:31]} {[%emt 00:01:14]} 8. Bd2 {[%clk
01:32:02]} {[%emt 00:00:08]} e6 {[%clk 01:25:10]} {[%emt 00:02:51]} 9. Bc4
{[%clk 01:30:02]} {[%emt 00:02:30]} Bb4 {[%clk 01:20:45]} {[%emt 00:04:55]} 10.
Rc1 {[%clk 01:29:53]} {[%emt 00:00:39]} Nf6 {[%clk 01:17:57]} {[%emt 00:03:19]}
11. O-O {[%clk 01:25:39]} {[%emt 00:04:43]} O-O {[%clk 01:15:23]} {[%emt
00:03:05]} 12. Qe2 {[%clk 01:25:18]} {[%emt 00:00:49]} Rd8 {[%clk 01:12:27]}
{[%emt 00:03:27]} 13. a3 {[%clk 01:24:51]} {[%emt 00:00:57]} Bxc3 {[%clk
01:08:43]} {[%emt 00:04:14]} 14. Bxc3 {[%clk 01:23:25]} {[%emt 00:01:56]} Qxa3
{[%clk 01:06:05]} {[%emt 00:03:09]} 15. d5 {[%clk 01:16:48]} {[%emt 00:07:07]}
Nxd5 {[%clk 01:01:02]} {[%emt 00:05:33]} 16. Bb2 {[%clk 01:16:20]} {[%emt
00:00:57]} Qe7 {[%clk 00:56:51]} {[%emt 00:04:41]} 17. Qe4 {[%clk 01:15:04]}
{[%emt 00:01:46]} a5 {[%clk 00:53:18]} {[%emt 00:04:04]} 18. Qg4 {[%clk
01:14:55]} {[%emt 00:00:37]} Nf6 {[%clk 00:50:51]} {[%emt 00:02:59]} 19. Qg5
{[%clk 01:12:14]} {[%emt 00:03:10]} a4 {[%clk 00:48:22]} {[%emt 00:03:00]} 20.
Ba2 {[%clk 01:08:33]} {[%emt 00:04:11]} a3 {[%clk 00:47:13]} {[%emt 00:01:39]}
21. Ba1 {[%clk 01:08:28]} {[%emt 00:00:34]} h6 {[%clk 00:46:13]} {[%emt
00:01:31]} 22. Qg3 {[%clk 01:08:38]} {[%emt 00:00:18]} Ra4 {[%clk 00:41:11]}
{[%emt 00:05:33]} 23. Rfd1 {[%clk 01:04:46]} {[%emt 00:04:22]} Nh5 {[%clk
00:37:42]} {[%emt 00:03:59]} 24. Rxd8+ {[%clk 00:55:57]} {[%emt 00:09:19]} Qxd8
{[%clk 00:37:06]} {[%emt 00:01:06]} 25. Bf6 {[%clk 00:56:17]} {[%emt 00:00:10]}
Nxg3 {[%emt 00:01:08]} 0-1

[Event "Schack-SM 2024: Mastarklassen"]
[Site "Fortnox Arena, Hejaregatan 5, Vaxjo, Sweden"]
[Date "2024.07.04"]
[Round "6.14"]
[White "Malm, Simon 1995"]
[Black "Karlsson, Jorgen"]
[Result "1-0"]
[TimeControl "90 minutes for 40 moves + 30 minutes for the rest of the game + 30 seconds per move from move one."]
[WhiteElo "1948"]
[BlackElo "2020"]

1. d4 {[%clk 01:30:57]} {[%emt 00:00:02]} d6 {[%clk 01:30:56]} {[%emt
00:00:06]} 2. c4 {[%clk 01:30:52]} {[%emt 00:00:33]} Nd7 {[%clk 01:30:45]}
{[%emt 00:00:42]} 3. Nc3 {[%clk 01:30:17]} {[%emt 00:01:05]} e5 {[%clk
01:30:16]} {[%emt 00:00:59]} 4. d5 {[%clk 01:29:50]} {[%emt 00:00:57]} f5
{[%clk 01:30:16]} {[%emt 00:00:30]} 5. e4 {[%clk 01:26:53]} {[%emt 00:03:26]}
Ndf6 {[%clk 01:28:52]} {[%emt 00:01:54]} 6. Nge2 {[%emt 00:05:41]} g6 {[%clk
01:26:16]} {[%emt 00:03:04]} 7. exf5 {[%clk 01:11:54]} {[%emt 00:10:21]} gxf5
{[%clk 01:26:38]} {[%emt 00:00:08]} 8. Ng3 {[%clk 01:10:57]} {[%emt 00:01:27]}
h5 {[%clk 01:13:26]} {[%emt 00:13:41]} 9. Be2 {[%clk 00:58:39]} {[%emt
00:12:49]} h4 {[%clk 01:12:46]} {[%emt 00:01:09]} 10. Nh5 {[%clk 00:55:36]}
{[%emt 00:03:34]} Bh6 {[%clk 01:12:07]} {[%emt 00:01:08]} 11. f4 {[%clk
00:51:09]} {[%emt 00:04:58]} Qe7 {[%clk 01:04:29]} {[%emt 00:08:06]} 12. O-O
{[%clk 00:48:42]} {[%emt 00:02:57]} e4 {[%clk 01:00:35]} {[%emt 00:04:25]} 13.
Be3 {[%clk 00:45:55]} {[%emt 00:03:17]} Nxh5 {[%clk 00:59:19]} {[%emt
00:01:46]} 14. Bxh5+ {[%clk 00:46:17]} {[%emt 00:00:07]} Kf8 {[%clk 00:59:45]}
{[%emt 00:00:05]} 15. Be2 {[%clk 00:42:07]} {[%emt 00:04:42]} Nf6 {[%clk
00:59:11]} {[%emt 00:01:02]} 16. Qe1 {[%clk 00:39:17]} {[%emt 00:03:21]} Bg7
{[%clk 00:58:40]} {[%emt 00:01:00]} 17. Rd1 {[%clk 00:34:24]} {[%emt 00:05:23]}
c5 {[%clk 00:54:31]} {[%emt 00:04:40]} 18. dxc6 {[%clk 00:31:50]} {[%emt
00:03:03]} bxc6 {[%clk 00:54:54]} {[%emt 00:00:08]} 19. Qd2 {[%clk 00:31:45]}
{[%emt 00:00:34]} Ne8 {[%clk 00:55:12]} {[%emt 00:00:13]} 20. b4 {[%clk
00:31:14]} {[%emt 00:01:00]} Qf6 {[%clk 00:49:17]} {[%emt 00:06:25]} 21. Rc1
{[%clk 00:29:19]} {[%emt 00:02:26]} a6 {[%clk 00:49:06]} {[%emt 00:00:40]} 22.
Rfd1 {[%clk 00:27:37]} {[%emt 00:02:12]} Bb7 {[%clk 00:42:55]} {[%emt
00:06:41]} 23. b5 {[%clk 00:24:57]} {[%emt 00:03:10]} c5 {[%clk 00:42:38]}
{[%emt 00:00:47]} 24. Nd5 {[%clk 00:23:40]} {[%emt 00:01:47]} Qf7 {[%clk
00:42:50]} {[%emt 00:00:18]} 25. b6 {[%clk 00:20:18]} {[%emt 00:03:53]} Rh6
{[%clk 00:42:17]} {[%emt 00:01:02]} 26. Qa5 {[%clk 00:18:24]} {[%emt 00:02:24]}
Rc8 {[%clk 00:41:43]} {[%emt 00:01:04]} 27. Rd2 {[%clk 00:17:18]} {[%emt
00:01:37]} Kg8 {[%clk 00:37:09]} {[%emt 00:05:03]} 28. Rcd1 {[%clk 00:14:55]}
{[%emt 00:02:54]} Bf8 {[%clk 00:37:04]} {[%emt 00:00:34]} 29. Rb1 {[%clk
00:13:12]} {[%emt 00:02:13]} Rh7 {[%clk 00:31:05]} {[%emt 00:06:29]} 30. Qc3
{[%clk 00:09:37]} {[%emt 00:04:05]} Bg7 {[%clk 00:30:05]} {[%emt 00:01:30]} 31.
Qc2 {[%clk 00:09:33]} {[%emt 00:00:34]} Nf6 {[%clk 00:25:16]} {[%emt 00:05:19]}
32. Rbd1 {[%clk 00:07:15]} {[%emt 00:02:49]} Rc6 {[%clk 00:24:27]} {[%emt
00:01:18]} 33. Qb3 {[%clk 00:06:11]} {[%emt 00:01:35]} Nd7 {[%clk 00:22:20]}
{[%emt 00:02:37]} 34. a4 {[%clk 00:05:38]} {[%emt 00:01:03]} Bf8 {[%clk
00:21:08]} {[%emt 00:01:41]} 35. a5 {[%clk 00:05:33]} {[%emt 00:00:36]} Nf6
{[%clk 00:20:16]} {[%emt 00:01:21]} 36. Nc7 {[%clk 00:05:26]} {[%emt 00:00:38]}
Ne8 {[%clk 00:19:14]} {[%emt 00:01:31]} 37. Nd5 {[%clk 00:03:45]} {[%emt
00:02:11]} Rc8 {[%clk 00:18:58]} {[%emt 00:00:46]} 38. Bf2 {[%clk 00:03:16]}
{[%emt 00:01:01]} Be7 {[%clk 00:14:44]} {[%emt 00:04:42]} 39. Qh3 {[%clk
00:03:12]} {[%emt 00:00:34]} Ng7 {[%clk 00:14:38]} {[%emt 00:00:37]} 40. Nxe7+
{[%clk 00:02:23]} {[%emt 00:01:19]} Qxe7 {[%clk 00:14:58]} {[%emt 00:00:10]} 41.
Rxd6 {[%clk 00:01:52]} {[%emt 00:01:01]} e3 {[%clk 00:10:25]} {[%emt 00:05:02]}
42. Qxe3 {[%clk 00:01:05]} {[%emt 00:01:16]} Be4 {[%clk 00:09:07]} {[%emt
00:01:49]} 43. Rd7 {[%clk 00:28:43]} {[%emt 00:02:53]} Qf6 {[%clk 00:39:16]}
{[%emt 00:00:20]} 44. b7 {[%clk 00:28:14]} {[%emt 00:00:59]} Rb8 {[%clk
00:39:38]} {[%emt 00:00:09]} 45. Qxc5 {[%clk 00:26:29]} {[%emt 00:02:14]} Qg6
{[%clk 00:34:48]} {[%emt 00:05:20]} 46. Bf1 {[%clk 00:23:51]} {[%emt 00:03:08]}
Ne8 {[%clk 00:34:35]} {[%emt 00:00:43]} 47. Rxh7 {[%clk 00:20:33]} {[%emt
00:03:49]} Qxh7 {[%clk 00:34:48]} {[%emt 00:00:17]} 48. Qe5 {[%clk 00:19:00]}
{[%emt 00:02:02]} Qxb7 {[%clk 00:34:06]} {[%emt 00:01:12]} 49. Bxh4 {[%clk
00:17:17]} {[%emt 00:02:14]} 1-0

[Event "Schack-SM 2024: Mastarklassen"]
[Site "Fortnox Arena, Hejaregatan 5, Vaxjo, Sweden"]
[Date "2024.07.04"]
[Round "6.1"]
[White "Muntean, Victor"]
[Black "Ljung, Harald"]
[Result "1-0"]
[TimeControl "90 minutes for 40 moves + 30 minutes for the rest of the game + 30 seconds per move from move one."]
[WhiteElo "2136"]
[BlackElo "2101"]

1. e4 {[%clk 01:30:59]} c5 {[%clk 01:30:55]} {[%emt 00:00:05]} 2. c3 {[%clk
01:31:25]} {[%emt 00:00:05]} Nf6 {[%clk 01:31:21]} {[%emt 00:00:04]} 3. e5
{[%clk 01:31:51]} {[%emt 00:00:05]} Nd5 {[%clk 01:31:48]} {[%emt 00:00:02]} 4.
Na3 {[%clk 01:32:15]} {[%emt 00:00:08]} Nc6 {[%clk 01:30:27]} {[%emt 00:01:50]}
5. Nf3 {[%clk 01:32:36]} {[%emt 00:00:09]} e6 {[%clk 01:28:18]} {[%emt
00:02:39]} 6. g3 {[%clk 01:29:13]} {[%emt 00:03:52]} d6 {[%clk 01:27:44]}
{[%emt 00:01:04]} 7. Qe2 {[%clk 01:27:34]} {[%emt 00:02:08]} dxe5 {[%clk
01:20:28]} {[%emt 00:07:47]} 8. Nxe5 {[%clk 01:27:48]} {[%emt 00:00:16]} Nxe5
{[%clk 01:20:46]} {[%emt 00:00:11]} 9. Qxe5 {[%clk 01:28:12]} {[%emt 00:00:07]}
Bd7 {[%clk 01:20:42]} {[%emt 00:00:32]} 10. Bg2 {[%clk 01:26:30]} {[%emt
00:02:11]} Bc6 {[%clk 01:20:43]} {[%emt 00:00:31]} 11. O-O {[%clk 01:26:05]}
{[%emt 00:00:54]} Qf6 {[%clk 01:16:24]} {[%emt 00:04:49]} 12. Qxf6 {[%clk
01:22:00]} {[%emt 00:04:35]} gxf6 {[%clk 01:16:43]} {[%emt 00:00:12]} 13. Nc2
{[%clk 01:18:22]} {[%emt 00:04:07]} O-O-O {[%clk 01:11:22]} {[%emt 00:05:49]}
14. d4 {[%clk 01:14:27]} {[%emt 00:04:26]} f5 {[%clk 00:59:09]} {[%emt
00:12:44]} 15. c4 {[%clk 01:09:43]} {[%emt 00:05:14]} Nb4 {[%clk 00:56:45]}
{[%emt 00:02:54]} 16. Nxb4 {[%clk 01:09:57]} {[%emt 00:00:15]} cxb4 {[%clk
00:56:31]} {[%emt 00:00:44]} 17. Bg5 {[%clk 01:07:05]} {[%emt 00:03:23]} Rd7
{[%clk 00:56:46]} {[%emt 00:00:15]} 18. d5 {[%clk 01:03:36]} {[%emt 00:04:00]}
exd5 {[%clk 00:56:27]} {[%emt 00:00:49]} 19. cxd5 {[%clk 01:03:55]} {[%emt
00:00:10]} Bb5 {[%clk 00:54:45]} {[%emt 00:02:11]} 20. Rac1+ {[%clk 00:57:51]}
{[%emt 00:06:34]} Kb8 {[%clk 00:54:45]} {[%emt 00:00:30]} 21. Bf4+ {[%clk
00:57:22]} {[%emt 00:01:00]} Bd6 {[%clk 00:55:08]} {[%emt 00:00:06]} 22. Bxd6+
{[%clk 00:57:47]} {[%emt 00:00:06]} Rxd6 {[%clk 00:55:33]} {[%emt 00:00:04]} 23.
Rfe1 {[%clk 00:58:11]} {[%emt 00:00:06]} Rc8 {[%clk 00:44:15]} {[%emt
00:11:48]} 24. f4 {[%clk 00:48:54]} {[%emt 00:09:48]} Bc4 {[%clk 00:41:02]}
{[%emt 00:03:43]} 25. b3 {[%clk 00:47:28]} {[%emt 00:01:56]} Bd3 {[%clk
00:39:04]} {[%emt 00:02:27]} 26. Rcd1 {[%clk 00:41:43]} {[%emt 00:06:13]} Bb5
{[%clk 00:38:20]} {[%emt 00:01:15]} 27. Rd2 {[%clk 00:39:18]} {[%emt 00:02:54]}
f6 {[%clk 00:26:26]} {[%emt 00:12:24]} 28. Kf2 {[%clk 00:37:37]} {[%emt
00:02:11]} b6 {[%clk 00:22:48]} {[%emt 00:04:09]} 29. Re7 {[%clk 00:30:49]}
{[%emt 00:07:18]} Rc7 {[%clk 00:22:18]} {[%emt 00:01:00]} 30. Rxc7 {[%clk
00:31:02]} {[%emt 00:00:18]} Kxc7 {[%clk 00:22:43]} {[%emt 00:00:05]} 31. Bh3
{[%clk 00:31:26]} {[%emt 00:00:06]} Bd7 {[%clk 00:20:14]} {[%emt 00:03:00]} 32.
Ke3 {[%clk 00:30:52]} {[%emt 00:01:04]} Bc8 {[%clk 00:19:55]} {[%emt 00:00:49]}
33. Kd4 {[%clk 00:29:45]} {[%emt 00:01:36]} a5 {[%clk 00:19:13]} {[%emt
00:01:12]} 34. Re2 {[%clk 00:27:44]} {[%emt 00:02:31]} Kd8 {[%clk 00:18:29]}
{[%emt 00:01:11]} 35. Bg2 {[%clk 00:26:20]} {[%emt 00:01:57]} Kd7 {[%clk
00:16:17]} {[%emt 00:02:43]} 36. Bf3 {[%clk 00:25:26]} {[%emt 00:01:23]} Bb7
{[%clk 00:11:13]} {[%emt 00:05:34]} 37. h3 {[%clk 00:19:59]} {[%emt 00:05:59]}
h5 {[%clk 00:04:47]} {[%emt 00:06:54]} 38. Re6 {[%clk 00:18:04]} {[%emt
00:02:25]} Ba8 {[%clk 00:04:55]} {[%emt 00:00:22]} 39. h4 {[%clk 00:15:35]}
{[%emt 00:02:58]} Bb7 {[%clk 00:04:26]} {[%emt 00:00:59]} 40. Rxd6+ {[%clk
00:15:21]} {[%emt 00:00:44]} Kxd6 {[%clk 00:04:53]} {[%emt 00:00:04]} 41. Bxh5
{[%clk 00:15:45]} {[%emt 00:00:06]} Bxd5 {[%clk 00:05:21]} {[%emt 00:00:03]} 42.
Be2 {[%clk 00:13:44]} {[%emt 00:02:31]} Bc6 {[%clk 00:00:56]} {[%emt 00:04:54]}
43. h5 {[%clk 00:10:42]} {[%emt 00:03:31]} Ke7 {[%clk 00:01:22]} {[%emt
00:00:04]} 44. Bc4 {[%clk 00:10:41]} {[%emt 00:00:30]} Kf8 {[%clk 00:01:37]}
{[%emt 00:00:15]} 45. h6 {[%clk 00:10:16]} {[%emt 00:00:57]} Bb7 {[%clk
00:28:46]} {[%emt 00:03:21]} 46. Bd3 {[%clk 00:40:08]} {[%emt 00:00:37]} Bc8
{[%clk 00:26:12]} {[%emt 00:03:04]} 47. Kd5 {[%clk 00:32:19]} {[%emt 00:08:18]}
Kf7 {[%clk 00:26:15]} {[%emt 00:00:27]} 48. Kc6 {[%clk 00:31:49]} {[%emt
00:00:59]} Be6 {[%clk 00:23:37]} {[%emt 00:03:09]} 49. Bb5 {[%clk 00:31:11]}
{[%emt 00:01:08]} 1-0